fUST/lending_fUST_20250901
["ID","MTS","AMOUNT","RATE_DAILY","PERIOD"]
[382627785,1756685457947,-1297.31,0.00016629,2]
[382627786,1756685457957,-480.0,0.00016629,2]
[382627787,1756685457967,-480.0,0.00016629,2]
[382627788,1756685457977,-612.66,0.00016629,2]
[382627789,1756685457987,-480.0,0.00016629,2]
[382627790,1756685457998,-480.0,0.00016629,2]
[382627791,1756685458007,-480.0,0.00016629,2]
[382627792,1756685458017,-1003.51,0.00016629,2]
[382627793,1756685458027,-805.19,0.00016629,2]
[382627794,1756685458038,-480.0,0.00016629,2]
[382627795,1756685458049,-729.22,0.00016629,2]
[382627796,1756685458059,-480.0,0.00016629,2]
[382627797,1756685458069,-480.0,0.00016629,2]
[382627798,1756685458078,-548.6,0.00016631,2]
[382627799,1756685458088,-480.0,0.00016631,2]
[382627800,1756685458099,-434.75143549,0.00016631,2]
[382627801,1756685458109,-480.0,0.00016631,2]
[382627802,1756685458124,-480.0,0.00016631,2]
[382627803,1756685458134,-480.0,0.00016631,2]
[382627804,1756685458144,-480.0,0.00016631,2]
[382627805,1756685458155,-480.0,0.00016631,2]
[382627806,1756685458164,-480.0,0.00016631,2]
[382627807,1756685458175,-480.0,0.00016631,2]
[382627808,1756685458185,-558.78,0.00016631,2]
[382627809,1756685458195,-480.0,0.00016631,2]
[382627810,1756685458205,-480.0,0.00016631,2]
[382627811,1756685458215,-480.0,0.00016631,2]
[382627812,1756685458225,-676.29,0.00016631,2]
[382627813,1756685458235,-480.0,0.00016631,2]
[382627814,1756685458244,-368.24939402,0.00016631,2]
[382627815,1756685458254,-673.12,0.00016631,2]
[382627816,1756685458264,-480.0,0.00016631,2]
[382627817,1756685458273,-480.0,0.00016631,2]
[382627818,1756685458283,-480.0,0.00016631,2]
[382627819,1756685458294,-480.0,0.00016631,2]
[382627820,1756685458304,-564.43,0.00016631,2]
[382627821,1756685458313,-480.0,0.00016631,2]
[382627822,1756685458323,-480.0,0.00016631,2]
[382627823,1756685458333,-480.0,0.00016631,2]
[382627824,1756685458342,-480.0,0.00016631,2]
[382627825,1756685458352,-480.0,0.00016631,2]
[382627826,1756685458361,-480.0,0.00016631,2]
[382627827,1756685458371,-916.42,0.00016631,2]
[382627828,1756685458381,-480.0,0.00016631,2]
[382627829,1756685458391,-480.0,0.00016631,2]
[382627830,1756685458402,-480.0,0.00016631,2]
[382627831,1756685458411,-480.0,0.00016631,2]
[382627832,1756685458422,-987.62,0.00016631,2]
[382627833,1756685458432,-480.0,0.00016631,2]
[382627834,1756685458442,-666.32,0.00016631,2]
[382627835,1756685458451,-480.0,0.00016631,2]
[382627836,1756685458461,-773.64,0.00016631,2]
[382627837,1756685458471,-480.0,0.00016631,2]
[382627838,1756685458480,-480.0,0.00016631,2]
[382627839,1756685458490,-480.0,0.00016631,2]
[382627840,1756685458500,-279.75704902,0.00016631,2]
[382627841,1756685458511,-480.0,0.00016631,2]
[382627842,1756685458520,-480.0,0.00016631,2]
[382627843,1756685458530,-480.0,0.00016631,2]
[382627844,1756685458540,-480.0,0.00016631,2]
[382627845,1756685458550,-480.0,0.00016631,2]
[382627846,1756685458560,-616.92,0.00016631,2]
[382627847,1756685458570,-957.57,0.00016631,2]
[382627848,1756685458580,-480.0,0.00016631,2]
[382627849,1756685458590,-1705.03,0.00016631,2]
[382627850,1756685458599,-480.0,0.00016631,2]
[382627851,1756685458609,-480.0,0.00016631,2]
[382627852,1756685458619,-500.0,0.00016631,2]
[382627853,1756685458629,-480.0,0.00016631,2]
[382627854,1756685458638,-579.36,0.00016631,2]
[382627855,1756685458647,-1038.93,0.00016631,2]
[382627856,1756685458657,-480.0,0.00016631,2]
[382627857,1756685458667,-480.0,0.00016631,2]
[382627858,1756685458677,-480.0,0.00016631,2]
[382627859,1756685458687,-716.54,0.00016631,2]
[382627860,1756685458698,-457.78735271,0.00016631,2]
[382627861,1756685458708,-520.8,0.00016631,2]
[382627862,1756685458718,-839.95,0.00016631,2]
[382627863,1756685458728,-812.59,0.00016631,2]
[382627864,1756685458738,-664.14,0.00016631,2]
[382627865,1756685458748,-535.33,0.00016631,2]
[382627866,1756685458757,-621.59548838,0.00016631,2]
[382627867,1756685458767,-480.0,0.00016631,2]
[382627868,1756685458779,-267.69012047,0.00016631,2]
[382627869,1756685458788,-1060.98,0.00016631,2]
[382627870,1756685458798,-480.0,0.00016631,2]
[382627871,1756685458807,-480.0,0.00016631,2]
[382627872,1756685458817,-480.0,0.00016631,2]
[382627873,1756685458829,-481.42,0.00016631,2]
[382627874,1756685458839,-480.0,0.00016631,2]
[382627875,1756685458848,-480.0,0.00016631,2]
[382627876,1756685458858,-480.0,0.00016631,2]
[382627877,1756685458867,-480.0,0.00016631,2]
[382627878,1756685458877,-480.0,0.00016631,2]
[382627879,1756685458887,-480.0,0.00016631,2]
[382627880,1756685458896,-480.0,0.00016631,2]
[382627881,1756685458906,-528.76,0.00016631,2]
[382627882,1756685458916,-480.0,0.00016631,2]
[382627883,1756685458927,-633.04,0.00016631,2]
[382627884,1756685458937,-1300.16,0.00016631,2]
[382627885,1756685458946,-774.12,0.00016631,2]
[382627886,1756685458956,-480.0,0.00016631,2]
[382627887,1756685458965,-480.0,0.00016631,2]
[382627888,1756685458975,-480.0,0.00016631,2]
[382627889,1756685458984,-379.0,0.00016697,2]
[382627890,1756685458994,-151.0,0.000167,2]
[382627891,1756685459003,-151.0,0.000167,2]
[382627892,1756685459013,-379.0,0.00016723,2]
[382627893,1756685459023,-300.0,0.00016728,2]
[382627894,1756685459033,-300.0,0.00016728,2]
[382627895,1756685459043,-300.0,0.00016728,2]
[382627896,1756685459054,-300.0,0.00016728,2]
[382627897,1756685459063,-300.0,0.00016728,2]
[382627898,1756685459073,-300.0,0.00016728,2]
[382627899,1756685459083,-300.0,0.00016728,2]
[382627900,1756685459093,-300.0,0.00016728,2]
[382627901,1756685459103,-300.0,0.00016728,2]
[382627902,1756685459114,-300.0,0.00016728,2]
[382627903,1756685459127,-300.0,0.00016728,2]
[382627904,1756685459137,-300.0,0.00016728,2]
[382627905,1756685459147,-300.0,0.00016728,2]
[382627906,1756685459160,-300.0,0.00016728,2]
[382627907,1756685459171,-300.0,0.00016728,2]
[382627908,1756685459180,-600.0,0.00016728,2]
[382627909,1756685459191,-480.0,0.00016731,2]
[382627910,1756685459200,-480.0,0.00016731,2]
[382627911,1756685459210,-659.74,0.00016731,2]
[382627912,1756685459220,-480.0,0.00016731,2]
[382627913,1756685459230,-608.44,0.00016731,2]
[382627914,1756685459240,-555.45,0.00016731,2]
[382627915,1756685459250,-160.16710454,0.00016731,2]
[382627916,1756685459260,-554.21,0.00016731,2]
[382627917,1756685459270,-379.0,0.00016739,2]
[382627918,1756685459283,-160.0,0.00016748,2]
[382627919,1756685459293,-11364.23969824,0.00016749,2]
[382627920,1756685459305,-217.4012883,0.0001675,2]
[382627921,1756685459315,-160.0,0.0001675,2]
[382627922,1756685459325,-845.95363151,0.0001675,2]
[382627923,1756685459335,-232.78794292,0.0001675,2]
[382627924,1756685459345,-530.02580203,0.0001675,2]
[382627925,1756685459356,-160.0,0.0001675,2]
[382627926,1756685459366,-160.0,0.0001675,2]
[382627927,1756685459376,-160.0,0.0001675,2]
[382627928,1756685459386,-160.0,0.0001675,2]
[382627929,1756685459395,-160.0,0.0001675,2]
[382627930,1756685459405,-160.0,0.0001675,2]
[382627931,1756685459415,-417.15472785,0.0001675,2]
[382627932,1756685459426,-425.75173308,0.0001675,2]
[382627933,1756685459436,-160.0,0.0001675,2]
[382627934,1756685459446,-160.0,0.0001675,2]
[382627935,1756685459456,-608.87160144,0.00016766,2]
[382627936,1756685459465,-500.0,0.00016766,2]
[382627937,1756685459476,-500.0,0.00016766,2]
[382627938,1756685459486,-373.13586244,0.00016766,2]
[382627939,1756685459496,-300.02526822,0.00016766,2]
[382627940,1756685459506,-500.0,0.00016766,2]
[382627941,1756685459516,-500.0,0.00016766,2]
[382627942,1756685459525,-379.0,0.00016768,2]
[382627943,1756685459536,-151.0,0.00016776,2]
[382627944,1756685459546,-379.0,0.00016809,2]
[382627945,1756685459556,-293.0,0.00016817,2]
[382627946,1756685459566,-379.0,0.0001682,2]
[382627947,1756685459576,-181.0,0.00016888,2]
[382627948,1756685459586,-480.0,0.00016892,2]
[382627949,1756685459595,-480.0,0.00016892,2]
[382627950,1756685459605,-1389.98,0.00016892,2]
[382627951,1756685459616,-497.13,0.00016892,2]
[382627952,1756685459625,-282.26544843,0.00016893,2]
[382627953,1756685459635,-500.0,0.00016893,2]
[382627954,1756685459645,-151.0,0.00016893,2]
[382627955,1756685459654,-500.0,0.00016893,2]
[382627956,1756685459664,-1558.0,0.00016893,2]
[382627957,1756685459675,-885.05,0.00016893,2]
[382627958,1756685459686,-480.0,0.00016893,2]
[382627959,1756685459695,-480.0,0.00016893,2]
[382627960,1756685459705,-480.0,0.00016893,2]
[382627961,1756685459715,-519.91,0.00016893,2]
[382627962,1756685459725,-480.0,0.00016893,2]
[382627963,1756685459735,-480.0,0.00016893,2]
[382627964,1756685459745,-480.0,0.00016893,2]
[382627965,1756685459756,-480.0,0.00016893,2]
[382627966,1756685459766,-1438.66,0.00016893,2]
[382627967,1756685459776,-611.39036016,0.00016893,2]
[382627968,1756685459786,-480.0,0.00016893,2]
[382627969,1756685459796,-480.0,0.00016893,2]
[382627970,1756685459806,-480.0,0.00016893,2]
[382627971,1756685459816,-850.95,0.00016893,2]
[382627972,1756685459827,-480.0,0.00016893,2]
[382627973,1756685459837,-480.0,0.00016893,2]
[382627974,1756685459847,-554.74,0.00016893,2]
[382627975,1756685459988,-1012.94,0.00016893,2]
[382627976,1756685460014,-996.37,0.00016893,2]
[382627977,1756685460024,-611.41,0.00016893,2]
[382627978,1756685460035,-769.55,0.00016893,2]
[382627979,1756685460046,-480.0,0.00016893,2]
[382627980,1756685460056,-646.08,0.00016893,2]
[382627981,1756685460066,-480.0,0.00016893,2]
[382627982,1756685460076,-480.0,0.00016893,2]
[382627983,1756685460086,-480.0,0.00016893,2]
[382627984,1756685460096,-480.0,0.00016893,2]
[382627985,1756685460106,-2266.81,0.00016893,2]
[382627986,1756685460118,-480.0,0.00016893,2]
[382627987,1756685460128,-480.0,0.00016893,2]
[382627988,1756685460138,-325.97501638,0.00016893,2]
[382627989,1756685460147,-480.0,0.00016893,2]
[382627990,1756685460159,-1900.15,0.00016893,2]
[382627991,1756685460169,-480.0,0.00016893,2]
[382627992,1756685460178,-222.99564457,0.00016893,2]
[382627993,1756685461084,-151.0,0.0001607,2]
[382627994,1756685461094,-151.0,0.0001607,2]
[382627995,1756685461104,-49.40772149,0.00016071,2]
[382627996,1756685463552,-151.0,0.0001607,2]
[382627997,1756685463562,-151.0,0.0001607,2]
[382627998,1756685463573,-397.93290232,0.00016071,2]
[382627999,1756685463583,-324.80289494,0.00016071,2]
[382628000,1756685473888,8491.4070765,0.00015971,2]
[382628001,1756685474023,10000.01,0.00015971,2]
[382628002,1756685474157,10000.01,0.00015971,2]
[382628003,1756685474296,10000.01,0.00015971,2]
[382628004,1756685474428,10000.01,0.00015971,2]
[382628005,1756685474573,10000.01,0.00015971,2]
[382628006,1756685474714,10000.01,0.00015971,2]
[382628007,1756685474849,8800.90030563,0.00015971,2]
[382628008,1756685476272,1199.10969437,0.00015079,2]
[382628009,1756685476412,10000.01,0.00015079,2]
[382628010,1756685476563,10000.01,0.00015079,2]
[382628011,1756685476591,40721.81733403,0.00015079,2]
[382628012,1756685483158,10000.01,0.00015255,2]
[382628013,1756685500571,5000.0,0.0001601,2]
[382628014,1756685516480,5000.0,0.0001601,2]
[382628015,1756685525528,0.01,0.0001601,2]
[382628016,1756685525674,4999.99,0.0001601,2]
[382628017,1756685534290,502.46103588,0.00030854,60]
[382628018,1756685541042,1907.88420141,0.0001601,2]
[382628019,1756685548873,3092.13579859,0.0001601,2]
[382628020,1756685548990,1907.86420141,0.0001601,2]
[382628021,1756685571668,5000.0,0.0001601,2]
[382628022,1756685591751,182.4551426,0.00015193,2]
[382628023,1756685595674,2909.69065599,0.0001601,2]
[382628024,1756685595797,1319.53492244,0.0001601,2]
[382628025,1756685645691,8680.47507756,0.00015971,2]
[382628026,1756685645835,10000.01,0.00015971,2]
[382628027,1756685645977,10000.01,0.00015971,2]
[382628028,1756685646117,10000.01,0.00015971,2]
[382628029,1756685646255,2328.25737887,0.00015971,2]
[382628030,1756685650205,277.0883396,7.535e-05,2]
[382628033,1756685659704,660.0,0.00016034,2]
[382628034,1756685662471,5000.0,0.00016064,2]
[382628035,1756685688136,5000.0,0.0001601,2]
[382628036,1756685696117,5000.0,0.0001601,2]
[382628037,1756685709794,322.71513621,0.00015983,2]
[382628038,1756685718068,154.93608741,0.00015969,2]
[382628039,1756685718508,154.93608739,0.0001597,2]
[382628040,1756685718899,154.93608739,0.0001597,2]
[382628041,1756685779482,191.9324808,0.00015071,2]
[382628042,1756685786843,9343.26925701,0.00015071,2]
[382628043,1756685786963,1022.03507939,0.00015071,2]
[382628044,1756685805563,8977.97492061,0.00015978,2]
[382628045,1756685805684,10000.01,0.00015978,2]
[382628046,1756685805803,10000.01,0.00015978,2]
[382628047,1756685805924,10000.01,0.00015978,2]
[382628048,1756685806044,7784.2944567,0.00015978,2]
[382628049,1756685807363,2215.7155433,0.0001597,2]
[382628050,1756685807489,1583.61314995,0.0001597,2]
[382628051,1756685820678,5000.0,0.0001601,2]
[382628052,1756685828961,3416.39685005,0.0001601,2]
[382628053,1756685829082,1583.60314995,0.0001601,2]
[382628054,1756685843036,666.0,0.0001507,2]
[382628055,1756685844003,203.86458159,0.0001601,2]
[382628056,1756685844117,4796.13541841,0.0001601,2]
[382628057,1756685851981,2954.27143164,0.0001601,2]
[382628058,1756685852093,2045.72856836,0.0001601,2]
[382628059,1756685866441,235.12493309,0.00015968,2]
[382628060,1756685867390,5000.0,0.0001601,2]
[382628061,1756685875808,2719.15649855,0.0001601,2]
[382628062,1756685875925,2280.84350145,0.0001601,2]
[382628063,1756685885215,5000.0,0.0001601,2]
[382628064,1756685893202,2719.16649855,0.0001601,2]
[382628065,1756685893331,2280.83350145,0.0001601,2]
[382628066,1756685901844,5000.0,0.0001601,2]
[382628067,1756685909695,650.275453,0.00015587,2]
[382628068,1756685910005,838.73398493,0.00015588,2]
[382628069,1756685910219,1230.16706062,0.0001601,2]
[382628070,1756685910352,3769.83293938,0.0001601,2]
[382628071,1756685918898,5000.0,0.0001601,2]
[382628072,1756685920179,1230.17706062,0.00015071,2]
[382628073,1756685920293,2154.51069678,0.00015071,2]
[382628074,1756685927182,2402.28843161,0.0001601,2]
[382628075,1756685936012,2619.16785404,0.0001601,2]
[382628076,1756685944065,2824.04301757,0.0001601,2]
[382628077,1756685944201,2175.95698243,0.0001601,2]
[382628078,1756685954960,1000.0,0.00015071,2]
[382628081,1756685966762,5000.0,0.0001601,2]
[382628082,1756685973003,1000.0,0.00025,30]
[382628084,1756685982915,10000.01,0.00015971,2]
[382628085,1756685983019,10000.01,0.00015971,2]
[382628086,1756685983117,3746.63815822,0.00015971,2]
[382628087,1756685989782,5000.0,0.0001611,6]
[382628088,1756686013014,5000.0,0.0001611,6]
[382628089,1756686037281,203.86458159,0.0001601,2]
[382628090,1756686052117,292.75516043,0.00015971,2]
[382628091,1756686052910,3783.70126787,0.00015969,2]
[382628092,1756686066978,-251.86254306,0.0001606,2]
[382628093,1756686070097,-48.13745694,0.0001606,2]
[382628094,1756686070128,-137.54548674,0.00016061,2]
[382628095,1756686073090,-13.45451326,0.00016061,2]
[382628096,1756686073114,-151.0,0.00016061,2]
[382628097,1756686073138,-151.0,0.00016061,2]
[382628098,1756686073163,-123.19601921,0.00016061,2]
[382628099,1756686075627,-27.80398079,0.00016061,2]
[382628100,1756686075652,-151.0,0.00016061,2]
[382628101,1756686075678,-52.05242287,0.00016061,2]
[382628102,1756686077207,-98.94757713,0.00016061,2]
[382628103,1756686077232,-53.91103655,0.00016061,2]
[382628104,1756686080459,-97.08896345,0.00016061,2]
[382628105,1756686080485,-107.8711392,0.00016061,2]
[382628106,1756686081826,-43.1288608,0.00016061,2]
[382628107,1756686081850,-151.0,0.00016061,2]
[382628108,1756686081873,-80.17877421,0.00016061,2]
[382628109,1756686082555,855.18987981,0.0001601,2]
[382628110,1756686083409,-70.82122579,0.00016061,2]
[382628111,1756686083438,-151.0,0.00016061,2]
[382628112,1756686083467,-96.92219259,0.00016061,2]
[382628113,1756686085461,-112.48218425,0.00016061,2]
[382628114,1756686090394,456.82264571,0.0001601,2]
[382628115,1756686106074,661.03830637,0.0001601,2]
[382628116,1756686106196,85.87288535,0.0001601,2]
[382628117,1756686120253,646.38612122,0.00015961,2]
[382628118,1756686121329,-152.85861368,0.00016061,2]
[382628119,1756686124055,160.41445315,0.00016061,3]
[382628120,1756686126736,-56.57554685,0.00016061,3]
[382628121,1756686128716,454.51088145,0.0001601,2]
[382628123,1756686135059,651.02,0.00016061,3]
[382628124,1756686156495,1135.166844,0.00013699,2]
[382628126,1756686293237,3310.73860943,0.00015969,2]
[382628127,1756686313213,-151.0,0.00016061,2]
[382628128,1756686314398,-151.0,0.00016061,2]
[382628129,1756686351343,183.85673622,0.0001601,2]
[382628132,1756686391181,5370.24781035,0.00015069,2]
[382628133,1756686391205,10000.01,0.00015069,2]
[382628134,1756686391232,10000.01,0.00015069,2]
[382628135,1756686391254,6780.03165625,0.00015069,2]
[382628136,1756686392995,234.20412832,0.00015971,2]
[382628137,1756686393841,-151.0,0.00016061,2]
[382628138,1756686399295,1426.203458,0.0001507,2]
[382628139,1756686403758,455.85678183,0.0001601,2]
[382628141,1756686431598,1103.7139756,0.0001507,2]
[382628143,1756686431625,10000.01,0.0001507,2]
[382628144,1756686431649,10000.01,0.0001507,2]
[382628145,1756686431674,7854.3626706,0.0001507,2]
[382628146,1756686455825,2145.6473294,0.0001597,2]
[382628147,1756686455852,7032.10985345,0.0001597,2]
[382628149,1756686540686,2967.90014655,0.00015969,2]
[382628150,1756686540712,31.48355104,0.00015969,2]
[382628152,1756686623200,9968.52644896,0.0001597,2]
[382628153,1756686623223,31.48355104,0.0001597,2]
[382628173,1756686632391,-273.62263705,0.00016066,2]
[382628411,1756686640936,-26.37736295,0.00016066,2]
[382628413,1756686640945,-300.0,0.00016066,2]
[382628415,1756686640954,-77.0749807,0.00016067,2]
[382628418,1756686640966,-499.99999999,0.00016067,2]
[382628607,1756686643777,-622.92501931,0.00016067,2]
[382628608,1756686643787,-1200.0,0.00016067,2]
[382628609,1756686643796,-366.62604039,0.00016068,2]
[382628610,1756686643806,-480.0,0.00016068,2]
[382628611,1756686643815,-55.16765672,0.00016068,2]
[382628612,1756686643861,-344.09880816,0.00016068,2]
[382628651,1756686657689,3860.0,0.00015795,2]
[382628652,1756686710104,-188.67,0.00016059,3]
[382628653,1756686710128,-27.43032654,0.00016059,3]
[382628654,1756686712500,-176.17584678,0.00016059,3]
[382628655,1756686716302,176.17584678,0.0001601,2]
[382628658,1756686731753,216.10032654,0.0001601,2]
[382628659,1756686733839,187.36330268,0.00015969,2]
[382628660,1756686762625,9420.370524,0.00015068,2]
[382628661,1756686762648,579.629476,0.00015068,2]
[382628662,1756686777899,2624.4607354,0.00015968,2]
[382628663,1756686778523,-195.62,0.00016059,3]
[382628664,1756686778545,-100.37211202,0.00016059,3]
[382628665,1756686780693,-153.9573891,0.00016059,3]
[382628666,1756686782992,-160.93290096,0.00016059,3]
[382628667,1756686784586,666.0,0.00015068,2]
[382628668,1756686784847,-171.62759792,0.00016059,3]
[382628669,1756686785388,213.71614198,0.0001601,2]
[382628670,1756686785411,4786.28385802,0.0001601,2]
[382628671,1756686792606,4547.72614198,0.00015969,2]
[382628672,1756686792629,10000.01,0.00015969,2]
[382628673,1756686792655,8802.846406,0.00015969,2]
[382628674,1756686801544,996.22614198,0.0001601,2]
[382628675,1756686814150,4000.0,0.00025,30]
[382628678,1756686842124,154.95386853,0.00015786,2]
[382628680,1756686882903,4143.63,0.00025,30]
[382628681,1756686899111,1000.0,0.00015068,2]
[382628687,1756687049735,911.0,0.00015955,2]
[382628688,1756687054938,911.0,0.00016007,2]
[382628689,1756687064022,2358.90314351,0.00015966,2]
[382628690,1756687075513,537.41754671,0.00015968,2]
[382628693,1756687111116,714.73472189,0.00015583,2]
[382628694,1756687111654,357.36736094,0.00015584,2]
[382628695,1756687121925,3054.63335842,0.0001601,2]
[382628696,1756687121948,1945.36664158,0.0001601,2]
[382628697,1756687141689,-316.53765158,0.00016057,3]
[382628698,1756687143382,-7.34234842,0.00016057,3]
[382628699,1756687143407,-153.44348873,0.00016063,2]
[382628700,1756687144979,-146.55651127,0.00016063,2]
[382628701,1756687145250,28.79174267,0.0001601,2]
[382628702,1756687145273,131.99409448,0.0001601,2]
[382628703,1756687153280,491.88590552,0.0001601,2]
[382628705,1756687182675,1124.549845,0.00013699,2]
[382628706,1756687203163,-161.94,0.00016057,3]
[382628707,1756687203189,-17.24814378,0.00016057,3]
[382628710,1756687205138,-200.0,0.00016057,3]
[382628711,1756687207385,-268.57185622,0.00016057,3]
[382628712,1756687207411,-54.83524224,0.00016063,2]
[382628713,1756687209712,-245.16475776,0.00016063,2]
[382628714,1756687209734,-80.63869461,0.00016063,2]
[382628715,1756687212811,-219.36130539,0.00016063,2]
[382628716,1756687212836,-29.78229095,0.00016063,2]
[382628717,1756687213062,702.59524224,0.0001601,2]
[382628718,1756687216203,-270.21770905,0.00016063,2]
[382628719,1756687216231,-12.46196865,0.00016063,2]
[382628720,1756687219032,-183.54713937,0.00016063,2]
[382628721,1756687220596,-119.99089198,0.00016063,2]
[382628722,1756687220618,-129.51992132,0.00016063,2]
[382628723,1756687220934,509.35059174,0.0001601,2]
[382628724,1756687222866,-233.58949047,0.00016063,2]
[382628725,1756687224351,-163.18205561,0.00016059,2]
[382628726,1756687225968,-178.37004141,0.00016059,2]
[382628727,1756687228222,-593.1792054,0.00016059,2]
[382628728,1756687231429,-261.51896563,0.00016059,2]
[382628729,1756687233640,-163.75024067,0.00016059,2]
[382628730,1756687233663,-81.53316543,0.00016063,2]
[382628731,1756687236576,1386.52144507,0.0001601,2]
[382628732,1756687237078,-194.1144467,0.00016063,2]
[382628733,1756687241790,-235.65437593,0.00016063,2]
[382628734,1756687244363,-203.06026371,0.00016063,2]
[382628735,1756687245837,1069.93580689,0.0001601,2]
[382628736,1756687247589,-174.65961751,0.00016063,2]
[382628737,1756687250436,-266.59370059,0.00016063,2]
[382628738,1756687252148,-271.43025014,0.00016063,2]
[382628739,1756687253808,-227.4492808,0.00016063,2]
[382628740,1756687255422,-281.9412158,0.00016063,2]
[382628741,1756687257891,-200.0,0.00016063,2]
[382628742,1756687260752,-185.68294368,0.00016063,2]
[382628743,1756687260946,1452.79425287,0.0001601,2]
[382628744,1756687268897,787.79184199,0.0001601,2]
[382628745,1756687271281,-300.0,0.00016062,2]
[382628746,1756687271307,-76.78368623,0.00016063,2]
[382628747,1756687272921,-230.29868653,0.00016063,2]
[382628748,1756687273855,397.22433262,0.00015966,2]
[382628749,1756687273878,10000.01,0.00015966,2]
[382628750,1756687273903,10000.01,0.00015966,2]
[382628751,1756687273926,10000.01,0.00015966,2]
[382628752,1756687273948,10000.01,0.00015966,2]
[382628753,1756687273970,10000.01,0.00015966,2]
[382628754,1756687273992,10000.01,0.00015966,2]
[382628755,1756687274018,10000.01,0.00015966,2]
[382628756,1756687274043,10000.01,0.00015966,2]
[382628757,1756687274066,10000.01,0.00015966,2]
[382628758,1756687274091,98750.73215875,0.00015966,2]
[382628759,1756687275123,-153.46117633,0.00016063,2]
[382628760,1756687277786,-154.29976482,0.00016063,2]
[382628761,1756687279318,-306.99465509,0.00016063,2]
[382628762,1756687283167,-176.0583158,0.00016063,2]
[382628763,1756687284852,-228.55692904,0.00016063,2]
[382628764,1756687284893,684.54462738,0.0001601,2]
[382628765,1756687287617,-155.54805451,0.00016063,2]
[382628766,1756687289129,-152.19350763,0.00016063,2]
[382628767,1756687291785,-163.46234842,0.00016063,2]
[382628768,1756687292878,868.89971193,0.0001601,2]
[382628769,1756687293917,-157.13392345,0.00016063,2]
[382628770,1756687295569,-366.98159628,0.00016063,2]
[382628771,1756687297734,-183.28086761,0.00016063,2]
[382628772,1756687301255,-224.66406432,0.00016063,2]
[382628773,1756687308738,1292.99236914,0.0001601,2]
[382628774,1756687316548,183.28086761,0.0001601,2]
[382628777,1756687328882,663.07818757,0.00015494,2]
[382628778,1756687330119,-227.14,0.00016057,3]
[382628779,1756687330141,-15.53485817,0.00016062,2]
[382628780,1756687331187,2652.31275029,0.00015774,2]
[382628781,1756687334562,-224.35375475,0.00016055,2]
[382628782,1756687337262,-205.92919851,0.00016055,2]
[382628783,1756687341180,-170.65452162,0.00016055,2]
[382628784,1756687343495,-422.3925944,0.00016055,2]
[382628785,1756687345538,-478.19002038,0.00016055,2]
[382628786,1756687349692,-189.3994798,0.00016055,2]
[382628787,1756687352429,-255.23961229,0.00016055,2]
[382628788,1756687355928,1260.6366162,0.0001601,2]
[382628789,1756687356090,-223.88520871,0.00016055,2]
[382628790,1756687358997,-152.85773566,0.00016055,2]
[382628791,1756687360602,-268.83252321,0.00016055,2]
[382628792,1756687362735,-213.18847883,0.00016055,2]
[382628793,1756687364864,-307.04035991,0.00016055,2]
[382628794,1756687365892,864.954791,0.00015063,2]
[382628795,1756687368945,-262.13604441,0.00016055,2]
[382628796,1756687371075,-300.42387482,0.00016055,2]
[382628797,1756687373251,-487.21361991,0.00016055,2]
[382628798,1756687376070,1529.31007888,0.00015962,2]
[382628799,1756687376094,534.7301717,0.00015962,2]
[382628800,1756687377654,-151.34458855,0.00016055,2]